bitfinex/quotes_ETHUSD_20250110
["timestamp","ask_amount","ask_price","bid_price","bid_amount"]
[1736491692578,0.55,3281.2,3280.7,0.7856]
[1736491692790,0.55,3281.2,3281.0,0.07399881]
[1736491692952,0.55,3281.2,3280.7,0.7856]
[1736491696051,0.55,3281.2,3280.8,0.07399881]
[1736491698206,3.79905,3281.1,3280.8,0.07399881]
[1736491698373,0.55,3281.0,3280.5,0.221]
[1736491698572,0.55,3280.8,3280.5,0.221]
[1736491698751,0.55,3280.8,3280.6,0.07422338]
[1736491699099,0.55,3280.8,3280.5,0.221]
[1736491699305,0.55,3281.0,3280.7,0.07422338]
[1736491699453,0.55,3281.0,3280.5,0.221]
[1736491699885,0.55,3281.0,3280.6,0.07422338]
[1736491700688,0.55,3281.0,3280.4,0.221]
[1736491700887,0.55,3281.0,3280.7,0.07422338]
[1736491701102,3.0477,3281.2,3280.4,0.221]
[1736491701298,3.04749,3281.4,3280.6,0.8019]
[1736491701598,3.85642,3281.6,3280.7,0.07433246]
[1736491701800,3.59742,3281.5,3280.7,0.07433246]
[1736491702155,0.55,3281.3,3280.7,0.07433246]
[1736491702552,0.8225,3281.0,3280.7,0.07433246]
[1736491702759,0.55,3280.9,3280.4,1.0191]
[1736491703088,0.55,3280.9,3280.8,0.07420413]
[1736491703284,0.55,3280.9,3280.4,1.0191]
[1736491703706,0.55,3280.9,3280.5,0.07420413]
[1736491705298,0.55,3280.9,3280.3,0.221]
[1736491705489,0.55,3280.9,3280.6,0.07420413]
[1736491705678,0.55,3280.9,3280.3,0.221]
[1736491705857,0.55,3280.9,3280.7,0.07420413]
[1736491706054,0.55,3280.9,3280.3,0.221]
[1736491706453,0.55,3280.9,3279.8,0.6195629]
[1736491706454,0.55,3281.1,3280.5,0.8074]
[1736491707059,0.55,3281.1,3280.6,0.07420413]
[1736491707555,0.55,3281.1,3280.5,0.8074]
[1736491707754,0.55,3281.1,3280.7,0.07420413]
[1736491707960,0.55,3281.1,3280.5,0.8074]
[1736491708215,0.55,3281.1,3280.8,0.0743838]
[1736491708357,0.55,3281.1,3280.5,0.8074]
[1736491708579,0.55,3281.1,3280.9,0.0743838]
[1736491708776,6.04749,3281.4,3280.5,0.83788179]
[1736491709026,3.04749,3281.4,3281.0,0.0743838]
[1736491709232,3.59757,3281.3,3280.5,0.83788179]
[1736491709528,0.55,3281.1,3280.5,0.8074]
[1736491710006,0.55,3281.0,3280.5,0.8074]
[1736491710211,0.55,3280.8,3280.4,0.221]
[1736491713093,1.3824,3281.1,3280.4,0.221]
[1736491713425,3.59777,3281.1,3280.4,0.221]
[1736491713728,3.59777,3281.1,3280.5,0.7982]
[1736491714497,0.55,3280.8,3280.5,0.7982]
[1736491714692,0.55,3280.8,3280.4,0.221]
[1736491716343,0.55,3280.7,3280.4,0.221]
[1736491717496,0.55,3280.9,3280.4,0.221]
[1736491717703,0.55,3280.9,3280.5,0.0743838]
[1736491719356,0.55,3280.8,3280.5,0.0743838]
[1736491719647,4.39984,3280.8,3280.5,0.0743838]
[1736491719811,4.839824,3280.8,3280.5,0.0743838]
[1736491720016,4.839824,3280.8,3280.3,0.221]
[1736491720202,4.39984,3280.8,3280.6,0.0743838]
[1736491720393,4.39984,3280.8,3280.3,0.221]
[1736491720599,4.39984,3280.8,3280.7,0.0743838]
[1736491720794,4.39984,3280.8,3280.3,0.221]
[1736491721018,4.39984,3280.8,3280.7,0.0743838]
[1736491721347,0.55,3280.7,3280.2,0.221]
[1736491721546,6.55589353,3280.8,3280.2,0.221]
[1736491721547,0.55,3280.5,3280.2,0.221]
[1736491721905,0.55,3280.5,3280.3,0.07455706]
[1736491722228,0.55,3280.5,3280.2,0.221]
[1736491722633,0.55,3280.5,3280.3,0.07455706]
[1736491723033,0.55,3280.5,3280.2,0.221]
[1736491723518,0.55,3280.7,3280.3,0.07504481]
[1736491723846,3.59813,3280.7,3280.2,0.221]
[1736491724326,3.59813,3280.7,3280.3,0.07504481]
[1736491724717,3.59813,3280.7,3280.2,0.221]
[1736491725118,3.59813,3280.7,3280.3,0.83384481]
[1736491725356,3.59813,3280.7,3280.3,0.7588]
[1736491727625,3.59813,3280.7,3280.4,0.07504481]
[1736491727819,3.59813,3280.7,3280.3,0.7588]
[1736491728034,3.04797,3280.9,3280.5,0.07504481]
[1736491728242,3.04797,3280.9,3280.3,0.7588]
[1736491728407,0.55,3280.8,3280.6,0.07504481]
[1736491728608,3.59809,3280.8,3280.3,0.7588]
[1736491728803,0.55,3280.5,3280.2,0.221]
[1736491730807,0.55,3280.2,3279.5,0.8285]
[1736491731060,0.55,3280.2,3279.6,0.221]
[1736491731061,0.55,3280.0,3279.6,0.221]
[1736491731855,3.0488,3280.0,3279.6,0.221]
[1736491732074,0.55,3279.9,3279.6,0.221]
[1736491732571,0.55,3280.1,3279.6,0.221]
[1736491732943,3.04823,3280.6,3279.7,0.80829125]
[1736491733164,2.26606953,3281.1,3279.9,0.015]
[1736491733371,3.04787,3281.0,3280.1,0.7703]
[1736491734717,2.26606953,3281.1,3280.4,0.0075]
[1736491734954,2.26606953,3281.1,3280.5,0.7599]
[1736491735296,2.26606953,3281.1,3280.5,0.9809]
[1736491735591,0.55,3281.0,3280.5,0.9809]
[1736491736108,3.04768,3281.2,3280.5,0.9809]
[1736491736267,0.55,3281.1,3280.5,0.9809]
[1736491736995,0.55,3281.1,3280.6,0.07535946]
[1736491737352,6.65962953,3281.1,3280.6,0.07535946]
[1736491737795,0.55,3280.9,3280.6,0.07535946]
[1736491738501,0.55,3281.0,3280.6,0.07535946]
[1736491738718,3.08286953,3281.4,3280.6,0.07535946]
[1736491738915,6.13034953,3281.4,3280.6,0.10584134]
[1736491739424,0.55,3281.3,3280.6,0.03048188]
[1736491739880,3.59757,3281.3,3280.6,0.0075]
[1736491740408,3.59757,3281.3,3280.7,0.07542364]
[1736491740730,3.59757,3281.3,3280.6,0.0075]
[1736491741081,1.21804395,3281.3,3280.7,0.07542364]
[1736491741276,0.55,3281.0,3280.7,0.07542364]
[1736491741581,3.59788,3281.0,3280.5,0.7599]
[1736491741782,3.59788,3281.0,3280.8,0.0753723]
[1736491742090,4.18427495,3281.0,3280.5,0.7599]
[1736491742505,0.55,3280.8,3280.6,0.0753723]
[1736491743682,2.81606953,3280.8,3280.6,0.0753723]
[1736491744123,2.81606953,3280.8,3280.3,0.221]
[1736491744630,2.81606953,3280.8,3280.4,0.0748266]
[1736491744983,3.04831,3280.6,3280.4,0.0748266]
[1736491745321,0.55,3280.5,3280.2,1.0091]
[1736491745830,1.3338,3280.4,3279.7,0.8262]
[1736491746123,0.55,3280.0,3279.6,0.221]
[1736491746323,0.55,3279.8,3279.5,1.0236]
[1736491747827,0.55,3279.8,3279.1,0.7743]
[1736491748030,2.26606953,3279.5,3279.1,0.7593]
[1736491748186,0.55,3279.4,3279.1,0.7593]
[1736491748387,0.55,3279.4,3278.9,0.7593]
[1736491748610,3.59938,3279.4,3278.9,0.9803]
[1736491749040,3.04917,3279.6,3278.9,0.9803]
[1736491749330,5.31504953,3279.8,3278.9,0.9803]
[1736491749531,0.55,3279.7,3278.9,0.9803]
[1736491749826,0.55,3279.5,3278.9,0.9803]
[1736491750235,0.55,3279.7,3279.0,0.03799451]
[1736491750553,0.55,3279.7,3279.2,0.7583]
[1736491750858,0.55,3279.9,3279.2,0.7583]
[1736491751960,5.86503953,3279.8,3279.2,0.7583]
[1736491752248,2.81606953,3279.8,3279.3,0.221]
[1736491752466,0.55,3279.4,3279.3,0.2947617]
[1736491752753,0.55,3279.4,3278.5,3.0]
[1736491752754,0.55,3279.2,3278.8,0.221]
[1736491753057,0.7552,3279.6,3278.8,0.221]
[1736491753058,2.26606953,3279.8,3278.9,0.07371673]
[1736491753262,3.04887,3280.0,3279.1,0.0075]
[1736491753416,0.55,3279.8,3279.1,0.0075]
[1736491753760,0.55,3279.4,3279.2,0.07372316]
[1736491754062,0.55,3279.4,3279.0,0.7892]
[1736491754756,2.81606953,3279.4,3279.1,0.07372316]
[1736491756262,5.86540953,3279.4,3279.1,0.07372316]
[1736491756762,2.81606953,3279.4,3279.1,0.07372316]
[1736491758973,1.90164447,3279.4,3279.1,0.07372316]
[1736491761219,2.70164447,3279.4,3279.1,0.07372316]
[1736491761519,2.70164447,3279.4,3278.8,1.0009]
[1736491761704,2.70164447,3279.4,3279.2,0.07438472]
[1736491762014,2.70164447,3279.4,3278.8,1.0009]
[1736491762573,2.70164447,3279.4,3278.9,0.07438472]
[1736491763312,5.75098447,3279.4,3278.9,0.07438472]
[1736491763669,2.26606953,3279.1,3278.9,0.07438472]
[1736491765387,2.26606953,3279.1,3278.8,0.221]
[1736491765586,2.26606953,3279.1,3278.9,0.07437187]
[1736491766324,2.26606953,3279.1,3278.8,0.221]
[1736491766884,2.26606953,3279.1,3278.9,0.07438472]
[1736491768820,2.26606953,3279.1,3278.8,0.221]
[1736491769117,2.26606953,3279.1,3278.6,0.8029]
[1736491769526,2.26606953,3279.1,3278.7,0.07438472]
[1736491770830,3.06606953,3279.4,3278.7,0.07438472]
[1736491770979,3.06606953,3279.4,3278.6,0.8029]
[1736491771412,3.06606953,3279.4,3278.7,0.07455819]
[1736491771894,2.26606953,3279.4,3278.7,0.07455819]
[1736491772221,2.26606953,3279.7,3279.1,0.0075]
[1736491772483,2.26606953,3279.7,3279.1,0.03799289]
[1736491772633,2.26606953,3279.7,3279.1,0.0075]
[1736491772835,2.26606953,3279.7,3279.2,0.07455819]
[1736491773035,2.26606953,3279.4,3279.2,0.07455819]
[1736491773344,2.26606953,3279.4,3279.3,0.07455819]
[1736491773837,2.26606953,3279.4,3279.0,0.8181]
[1736491774334,2.26606953,3279.4,3279.1,0.07455819]
[1736491775238,5.31513953,3279.7,3279.1,0.07455819]
[1736491776298,2.26606953,3279.7,3279.1,0.07455819]
[1736491776533,3.86676,3280.0,3279.1,0.07455819]
[1736491776534,6.13282953,3280.0,3279.2,0.7925]
[1736491777192,2.26606953,3279.7,3279.2,0.7925]
[1736491777626,2.26606953,3279.7,3279.3,0.07455819]
[1736491778014,2.26606953,3279.7,3279.2,0.7925]
[1736491778208,2.26606953,3279.7,3279.4,0.07455819]
[1736491778411,2.26606953,3279.7,3279.5,0.07455819]
[1736491778699,2.26606953,3279.7,3279.2,0.7925]
[1736491779142,2.26606953,3279.7,3279.3,0.07455819]
[1736491779308,3.0488,3280.0,3279.4,0.221]
[1736491779498,2.26606953,3279.9,3279.4,0.221]
[1736491780743,2.26606953,3279.9,3279.5,0.07455819]
[1736491781104,2.26606953,3279.9,3279.6,0.7532]
[1736491781546,2.26606953,3279.9,3279.7,0.07419845]
[1736491781929,2.26606953,3280.2,3279.7,0.07419845]
[1736491782241,5.31439953,3280.5,3279.8,0.7532]
[1736491782644,2.26606953,3280.2,3279.9,0.0737167]
[1736491782856,2.26606953,3280.2,3279.8,0.7532]
[1736491783407,2.26606953,3280.2,3279.9,0.07354331]
[1736491786335,3.04796953,3280.2,3279.9,0.07354331]
[1736491786944,3.04796953,3280.2,3279.6,0.221]
[1736491787171,2.26606953,3280.2,3279.6,0.221]
[1736491787825,2.26606953,3280.2,3279.7,0.0734791]
[1736491790351,2.26606953,3280.2,3279.6,0.25149029]
[1736491790775,2.26606953,3280.2,3279.7,0.0734791]
[1736491791062,2.26606953,3280.2,3279.6,0.25149029]
[1736491791479,2.26606953,3280.2,3279.7,0.0734791]
[1736491793732,0.8238,3280.1,3279.7,0.0734791]
[1736491793952,0.8238,3280.1,3279.6,0.221]
[1736491794189,0.8238,3280.1,3279.8,0.07328645]
[1736491794388,2.26606953,3279.9,3279.6,0.221]
[1736491796249,2.26606953,3279.9,3279.3,0.7943]
[1736491796469,2.26606953,3279.9,3278.7,8.7475]
[1736491796470,2.26606953,3279.6,3279.1,0.8183]
[1736491796653,3.01826953,3279.6,3279.2,0.221]
[1736491797187,2.26606953,3279.3,3279.0,0.221]
[1736491797374,2.26606953,3279.3,3278.9,0.221]
[1736491797985,2.26606953,3279.3,3278.6,0.0075]
[1736491798157,5.31551953,3279.3,3278.7,0.221]
[1736491799080,0.7522,3279.2,3278.7,0.221]
[1736491799241,2.26606953,3279.0,3278.7,0.221]
[1736491799934,0.7522,3279.2,3278.7,0.221]
[1736491800690,2.26606953,3279.3,3278.7,0.221]
[1736491801194,5.31550953,3279.3,3278.7,0.221]
[1736491801564,2.26606953,3279.0,3278.5,0.221]
[1736491802146,0.7522,3279.2,3278.5,0.221]
[1736491802348,0.7522,3279.2,3278.6,0.8331]
[1736491802676,2.26606953,3279.3,3278.7,0.0075]
[1736491803907,2.26606953,3279.0,3278.5,0.221]
[1736491804526,2.26606953,3279.0,3278.4,0.82399942]
[1736491804527,3.03966953,3279.3,3278.6,0.7935]
[1736491804824,3.03966953,3279.3,3278.7,0.221]
[1736491807233,6.08910953,3279.3,3278.7,0.221]
[1736491808281,5.31550953,3279.3,3278.7,0.221]
[1736491808999,2.26606953,3279.3,3278.7,0.221]
[1736491809830,2.26606953,3279.6,3278.8,0.015]
[1736491810042,2.26606953,3279.6,3279.0,0.0075]
[1736491810565,2.26606953,3279.6,3279.1,0.0745839]
[1736491815280,5.31495953,3279.9,3279.2,0.756]
[1736491815434,2.26606953,3279.9,3279.2,0.756]
[1736491815636,11.40610953,3280.5,3279.5,0.0075]
[1736491815849,3.07776953,3280.5,3279.7,0.756]
[1736491816049,3.07776953,3280.5,3279.8,0.0075]
[1736491816486,3.07776953,3280.5,3279.8,0.08174984]
[1736491817234,2.26606953,3279.9,3279.8,0.07424984]
[1736491817551,2.26606953,3279.9,3279.6,0.221]
[1736491817754,5.31494953,3279.9,3279.6,0.221]
[1736491817955,5.31494953,3279.9,3279.7,0.07388378]
[1736491818569,5.31494953,3279.9,3279.6,0.221]
[1736491818961,5.31494953,3279.9,3279.7,0.07388378]
[1736491819358,5.92149448,3279.9,3279.6,0.221]
[1736491819760,5.92149448,3279.9,3279.7,0.07388378]
[1736491820145,5.92149448,3279.9,3279.6,0.221]
[1736491820555,5.92149448,3279.9,3279.7,0.07388378]
[1736491820963,4.38775,3279.7,3279.6,0.221]
[1736491821289,3.04939,3279.4,3279.1,0.221]
[1736491821444,2.26606953,3279.2,3278.7,0.221]
[1736491821650,2.26606953,3279.2,3278.7,0.9983]
[1736491821843,2.26606953,3279.2,3278.8,0.07388378]
[1736491822249,2.26606953,3279.2,3278.7,0.9983]
[1736491822888,2.26606953,3279.2,3278.8,0.07388378]
[1736491823389,3.04939,3279.4,3278.9,0.07388378]
[1736491823778,3.04939,3279.4,3278.7,0.9983]
[1736491823943,3.04939,3279.4,3279.0,0.07388378]
[1736491824143,3.04939,3279.4,3278.7,0.9983]
[1736491824391,3.04939,3279.4,3279.1,0.07388378]
[1736491824547,3.04939,3279.4,3278.7,0.9983]
[1736491825090,3.04939,3279.4,3278.8,0.07388378]
[1736491825594,2.26606953,3279.2,3278.8,0.07388378]
[1736491826058,2.26606953,3279.2,3278.9,0.07388378]
[1736491826265,2.26606953,3279.2,3278.7,0.9983]
[1736491826565,2.26606953,3279.2,3278.8,0.07388378]
[1736491826960,2.26606953,3279.2,3278.7,0.9983]
[1736491827608,2.26606953,3279.2,3278.8,0.07392874]
[1736491827883,2.26606953,3279.2,3278.7,0.9983]
[1736491828289,2.26606953,3279.2,3278.8,0.07392874]
[1736491828587,2.26606953,3279.2,3278.7,0.9983]
[1736491828740,2.26606953,3279.2,3278.9,0.07392874]
[1736491828954,2.26606953,3279.2,3278.7,0.9983]
[1736491829276,2.26606953,3279.2,3279.0,0.07392874]
[1736491829603,2.26606953,3279.2,3279.1,0.0745839]
[1736491829977,2.26606953,3279.2,3278.7,0.9983]
[1736491830478,2.26606953,3279.2,3278.8,0.0745839]
[1736491830816,2.26606953,3279.2,3278.7,0.9983]
[1736491830975,2.26606953,3279.2,3278.9,0.0745839]
[1736491831301,2.26606953,3279.2,3278.7,0.9983]
[1736491831492,2.26606953,3279.2,3279.0,0.0745839]
[1736491831803,2.26606953,3279.2,3279.1,0.0745839]
[1736491832307,2.26606953,3279.2,3278.7,0.9983]
[1736491832720,2.26606953,3279.2,3278.8,0.10079019]
[1736491832875,2.26606953,3279.2,3278.7,0.9983]
[1736491833369,2.26606953,3279.2,3278.8,0.10079019]
[1736491833762,2.26606953,3279.2,3278.7,0.9983]
[1736491834163,2.26606953,3279.2,3278.8,0.10077734]
[1736491834663,2.26606953,3279.2,3278.9,0.10077092]
[1736491834982,2.26606953,3279.2,3278.7,0.9983]
[1736491835167,2.26606953,3279.2,3279.0,0.10077092]
[1736491835368,2.26606953,3279.2,3278.7,0.9983]
[1736491835667,2.26606953,3279.2,3279.1,0.10077092]
[1736491835895,2.26606953,3279.2,3278.7,0.9983]
[1736491836407,2.26606953,3279.2,3278.8,0.10077092]
[1736491836907,2.26606953,3279.2,3278.9,0.10077092]
[1736491837407,2.26606953,3279.2,3278.7,0.9983]
[1736491837610,2.26606953,3279.2,3279.0,0.10077092]
[1736491837780,2.26606953,3279.2,3278.7,0.9983]
[1736491838105,2.26606953,3279.2,3279.1,0.10077092]
[1736491838320,2.26606953,3279.2,3278.7,0.9983]
[1736491838812,2.26606953,3279.2,3278.8,0.10077092]
[1736491839106,2.26606953,3279.2,3278.7,0.9983]
[1736491839477,2.26606953,3279.2,3278.8,0.10071952]
[1736491840011,2.26606953,3279.2,3278.9,0.10071952]
[1736491840396,2.26606953,3279.2,3278.7,0.9983]
[1736491840562,2.26606953,3279.2,3279.0,0.10071952]
[1736491840763,2.26606953,3279.2,3278.7,0.9983]
[1736491841006,2.26606953,3279.2,3279.1,0.10071952]
[1736491841209,2.26606953,3279.2,3278.7,0.9983]
[1736491841566,2.26606953,3279.2,3278.8,0.10071952]
[1736491841962,2.26606953,3279.2,3278.7,0.9983]
[1736491842466,2.26606953,3279.2,3278.8,0.10070667]
[1736491842970,2.26606953,3279.2,3278.9,0.10070667]
[1736491843186,0.825,3279.1,3278.9,0.10070667]
[1736491843388,0.825,3279.1,3278.7,0.221]
[1736491843710,0.825,3279.1,3279.0,0.10069382]
[1736491843868,0.825,3279.1,3278.7,0.221]
[1736491844432,0.825,3279.1,3278.8,0.10069382]
[1736491844781,0.825,3279.1,3278.7,0.221]
[1736491844982,0.825,3279.1,3278.9,0.10069382]
[1736491845226,0.825,3279.1,3278.7,0.221]
[1736491845428,0.825,3279.1,3279.0,0.10069382]
[1736491845628,0.825,3279.1,3278.7,0.221]
[1736491846317,0.825,3279.1,3278.8,0.10067454]
[1736491846629,0.825,3279.1,3278.7,0.221]
[1736491846798,0.825,3279.1,3278.9,0.10067454]
[1736491847124,0.825,3279.1,3278.7,0.221]
[1736491847325,0.825,3279.1,3279.0,0.10067454]
[1736491847687,0.825,3279.1,3278.8,0.221]
[1736491847897,2.26606953,3279.2,3278.9,0.10067454]
[1736491849038,2.26606953,3279.2,3278.8,0.221]
[1736491849334,2.26606953,3279.2,3278.9,0.10067454]
[1736491849741,2.26606953,3279.2,3278.8,0.221]
[1736491850044,2.26606953,3279.2,3278.9,0.10067454]
[1736491850407,2.26606953,3279.2,3278.8,0.221]
[1736491850835,2.26606953,3279.2,3278.9,0.10067454]
[1736491851139,2.26606953,3279.2,3278.8,0.221]
[1736491851319,2.26606953,3279.2,3278.9,0.10070024]
[1736491851529,5.31560953,3279.2,3278.9,0.10070024]
[1736491851736,5.92858048,3279.2,3278.8,0.221]
[1736491851915,5.31560953,3279.2,3278.9,0.10071952]
[1736491852112,2.26606953,3279.2,3278.8,0.221]
[1736491852320,2.26606953,3279.2,3278.9,0.10071952]
[1736491859336,1.07377108,3279.1,3278.9,0.10071952]
[1736491860366,1.07377108,3279.1,3278.8,0.221]
[1736491860867,1.07377108,3279.1,3278.9,0.10072594]
[1736491862471,0.8158,3279.9,3279.1,0.8124]
[1736491862813,0.8158,3280.9,3279.2,0.03799383]
[1736491862935,3.04785,3281.0,3279.2,0.03799383]
[1736491862936,1.07377108,3279.7,3279.4,0.0075]
[1736491863140,1.07377108,3279.5,3279.4,0.221]
[1736491863323,1.07377108,3279.5,3279.4,0.32172594]
[1736491863524,1.56915619,3279.5,3279.4,0.221]
[1736491863867,1.56915619,3279.5,3278.8,0.221]
[1736491863868,0.831,3279.3,3278.8,0.221]
[1736491864074,1.07377108,3278.9,3278.8,0.221]
[1736491864422,1.07377108,3278.9,3278.4,0.7646]
[1736491864675,1.07377108,3278.6,3278.5,0.221]
[1736491865027,1.07377108,3278.6,3277.8,0.8274]
[1736491865329,1.89537108,3278.7,3277.9,0.25150432]
[1736491865529,1.07377108,3278.7,3278.0,0.7754]
[1736491865939,1.07377108,3278.7,3278.1,0.40776243]
[1736491866372,1.85147108,3278.9,3278.2,0.0075]
[1736491866521,1.85147108,3278.9,3278.3,0.7517]
[1736491866927,1.07377108,3278.7,3278.3,0.7517]
[1736491867902,1.07377108,3278.5,3278.1,0.774]
[1736491868027,1.07377108,3278.3,3277.9,0.774]
[1736491868227,1.07377108,3278.1,3277.6,0.774]
[1736491868480,1.07377108,3277.7,3277.5,0.221]
[1736491868645,1.07377108,3277.7,3277.4,0.995]
[1736491869326,2.27004432,3277.8,3277.4,0.774]
[1736491869533,2.27004432,3277.8,3277.2,0.9932]
[1736491869764,0.7543,3278.0,3277.2,1.15211767]
[1736491872239,0.7543,3278.0,3277.3,0.09720695]
[1736491874068,2.27004432,3278.1,3277.3,0.09720695]
[1736491874273,2.27004432,3278.1,3277.4,0.0075]
[1736491874477,2.27004432,3278.1,3277.3,0.09720695]
[1736491874710,2.27004432,3277.8,3277.5,0.09806825]
[1736491874889,2.27004432,3277.8,3277.2,1.15211767]
[1736491875359,2.27004432,3277.8,3277.3,0.09806825]
[1736491878295,0.8113,3277.7,3277.3,0.09806825]
[1736491878801,2.27004432,3277.5,3277.3,0.09806825]
[1736491879221,2.27004432,3277.5,3277.0,0.83559808]
[1736491879387,2.27004432,3277.5,3277.4,0.09483371]
[1736491879591,2.27004432,3277.5,3277.0,0.61559808]
[1736491879592,0.55,3277.4,3277.0,0.61559808]
[1736491879763,2.27004432,3277.1,3276.3,0.22]
[1736491879954,8.33139,3277.2,3276.2,0.22]
[1736491879955,2.27004432,3276.7,3276.2,0.22]
[1736491880155,2.27004432,3277.0,3276.3,3.08272093]
[1736491880813,2.27004432,3277.0,3276.4,0.0075]
[1736491881098,2.27004432,3277.0,3276.4,0.33852209]
[1736491881510,2.27004432,3277.0,3276.3,0.0075]
[1736491881726,2.27004432,3277.0,3276.3,0.03801879]
[1736491881911,5.28,3277.2,3276.6,0.0075]
[1736491882999,5.28,3277.2,3276.7,0.22]
[1736491883191,5.28,3277.2,3276.8,0.8009]
[1736491883511,2.27004432,3277.4,3276.8,0.8009]
[1736491884194,2.27004432,3277.4,3276.8,1.208931]
[1736491884595,3.03164432,3277.4,3276.8,0.8009]
[1736491884998,2.27004432,3277.4,3276.8,0.8009]
[1736491886322,2.27004432,3277.4,3276.9,0.09179591]
[1736491888221,0.8258,3277.9,3277.0,0.7705]
[1736491888568,0.8258,3277.9,3277.1,0.39443807]
[1736491888773,0.8258,3277.9,3277.2,0.09179591]
[1736491891511,2.27004432,3277.7,3277.3,0.22]
[1736491891715,2.27004432,3277.4,3277.3,0.22]
[1736491892791,0.7819,3277.3,3276.9,0.22]
[1736491892976,2.27004432,3277.0,3276.5,1.0009]
[1736491893376,3.05194432,3277.3,3276.5,1.0009]
[1736491895830,2.27004432,3277.0,3276.5,1.0009]
[1736491895978,2.27004432,3277.0,3276.6,0.221]
[1736491896622,2.27004432,3276.7,3276.5,0.221]
[1736491897732,2.27004432,3276.7,3275.9,0.8028]
[1736491897733,5.32191432,3276.7,3275.9,0.8028]
[1736491898063,2.27004432,3276.3,3276.0,0.221]
[1736491900993,2.27004432,3276.3,3275.9,0.8028]
[1736491901190,2.27004432,3276.0,3275.9,0.221]
[1736491901579,3.06764432,3276.3,3275.9,0.221]
[1736491903130,3.06764432,3276.3,3275.7,0.9875]
[1736491903426,3.06764432,3276.3,3275.8,0.09125684]
[1736491903813,3.06764432,3276.3,3275.7,0.9875]
[1736491904020,3.06764432,3276.3,3275.9,0.09125684]
[1736491904184,3.06764432,3276.3,3275.7,0.9875]
[1736491904919,3.06764432,3276.3,3275.8,0.09125684]
[1736491905229,3.06764432,3276.3,3275.7,0.9875]
[1736491905434,3.06764432,3276.3,3275.9,0.09125684]
[1736491905582,3.06764432,3276.3,3275.7,0.9875]
[1736491906082,3.06764432,3276.3,3275.8,0.09125684]
[1736491906281,3.06764432,3276.3,3275.7,0.9875]
[1736491906698,3.06764432,3276.3,3275.8,0.09125684]
[1736491906894,2.27004432,3276.3,3275.8,0.09125684]
[1736491907099,2.27004432,3276.3,3275.7,0.9875]
[1736491907532,2.27004432,3276.3,3275.8,0.09125684]
[1736491908032,2.27004432,3276.3,3275.7,0.9875]
[1736491908470,2.27004432,3276.3,3275.8,0.09125684]
[1736491908974,2.27004432,3276.3,3275.7,0.9875]
[1736491909129,2.27004432,3276.3,3275.8,0.09125684]
[1736491909325,2.27004432,3276.3,3275.7,0.9875]
[1736491909729,2.27004432,3276.3,3275.8,0.09125684]
[1736491909930,2.27004432,3276.3,3275.7,0.9875]
[1736491910231,2.27004432,3276.3,3275.8,0.09125684]
[1736491910531,2.27004432,3276.3,3275.7,0.9875]
[1736491910731,2.27004432,3276.3,3275.8,0.09125684]
[1736491910933,2.27004432,3276.3,3275.7,0.9875]
[1736491911331,2.27004432,3276.3,3275.8,0.09125684]
[1736491911332,2.27004432,3276.0,3275.8,0.09125684]
[1736491911582,2.27004432,3276.0,3275.7,0.221]
[1736491911933,2.27004432,3276.0,3275.8,0.0915336]
[1736491912133,2.27004432,3276.0,3275.7,0.221]
[1736491912383,2.27004432,3276.0,3275.8,0.0915336]
[1736491912553,2.27004432,3276.0,3275.7,0.221]
[1736491912754,2.27004432,3276.0,3275.8,0.0915336]
[1736491913070,2.27004432,3276.0,3275.7,0.221]
[1736491913282,2.27004432,3276.0,3275.5,0.22]
[1736491913480,2.27004432,3276.0,3275.8,0.0915336]
[1736491913679,2.27004432,3276.0,3275.5,0.22]
[1736491913991,2.27004432,3276.0,3275.6,0.0915336]
[1736491914394,2.27004432,3275.7,3275.6,0.0915336]
[1736491914600,2.27004432,3276.0,3275.6,0.0915336]
[1736491918367,2.27004432,3276.0,3275.7,0.802]
[1736491919102,2.27004432,3276.0,3275.8,0.0915336]
[1736491919453,2.27004432,3276.0,3275.7,0.802]
[1736491920001,2.27004432,3276.0,3275.8,0.0915336]
[1736491920493,2.27004432,3276.0,3275.5,1.022]
[1736491920853,2.27004432,3276.0,3275.6,0.0915336]
[1736491921280,3.58948875,3276.0,3275.6,0.0915336]
[1736491922299,2.27004432,3276.0,3275.6,0.0915336]
[1736491925706,2.27004432,3275.7,3275.6,0.0915336]
[1736491926056,2.27004432,3275.7,3275.1,0.22]
[1736491926488,2.27004432,3275.7,3275.2,0.0920035]
[1736491927658,2.27004432,3275.4,3275.2,0.0920035]
[1736491928057,2.27004432,3275.4,3275.0,0.7945]
[1736491928381,2.27004432,3275.4,3275.3,0.0920035]
[1736491928587,2.27004432,3275.4,3275.0,0.7945]
[1736491928967,2.27004432,3275.4,3275.1,0.0920035]
[1736491934111,5.85540875,3275.4,3275.1,0.0920035]
[1736491934313,3.87576,3275.3,3275.1,0.0920035]
[1736491934462,3.87576,3275.3,3274.7,0.9754]
[1736491934812,2.27004432,3275.1,3274.8,0.08756102]
[1736491935306,2.27004432,3275.1,3274.7,0.9754]
[1736491935490,2.27004432,3275.1,3274.9,0.08756102]
[1736491935706,2.27004432,3275.1,3274.7,0.9754]
[1736491935707,2.27004432,3275.1,3274.7,0.7554]
[1736491935883,2.27004432,3275.1,3275.0,0.08756102]
[1736491936060,2.27004432,3275.1,3274.3,0.8324]
[1736491936261,2.27004432,3274.5,3274.3,0.8324]
[1736491936494,2.27004432,3274.5,3274.4,0.08756102]
[1736491936964,2.27004432,3274.5,3274.2,0.22]
[1736491937588,2.27004432,3274.5,3274.3,0.08473422]
[1736491940381,2.27004432,3274.5,3274.2,0.22]
[1736491940778,2.27004432,3274.5,3274.3,0.08064009]
[1736491941796,2.27004432,3274.5,3274.1,1.0524]
[1736491942102,0.7965,3274.9,3274.1,1.0524]
[1736491942103,0.7965,3274.9,3274.2,0.08067231]
[1736491942483,2.27004432,3274.7,3274.2,0.08067231]
[1736491944218,2.27004432,3274.4,3274.2,0.08067231]
[1736491944604,2.27004432,3274.4,3273.8,1.011]